[Event "Titled Tuesday Blitz April 26 Early 2022"]
[White "Jaracz, Pawel"]
[Black "Seo, Jung Min"]
[WhiteFideId "1102222"]
[BlackFideId "1734687"]
[WhiteElo "2429"]
[BlackElo "2401"]
[Result "0-1"]
[Round "11"]
[TimeControl "180+1"]
[Date "2022.04.26"]
[WhiteClock "0:00:02"]
[BlackClock "0:00:06"]

1. e4 {[%clk 0:03:00]}  c5 {[%clk 0:02:59]} 2. Nf3 {[%clk 0:02:59]}  d6 {[%clk 0:02:59]} 3. d4 {[%clk 0:02:58]}  cxd4 {[%clk 0:03:00]} 4. Nxd4 {[%clk 0:02:58]}  Nf6 {[%clk 0:03:01]} 5. Nc3 {[%clk 0:02:58]}  a6 {[%clk 0:03:01]} 6. g3 {[%clk 0:02:57]}  e5 {[%clk 0:02:58]} 7. Nde2 {[%clk 0:02:54]}  h5 {[%clk 0:02:51]} 8. h3 {[%clk 0:02:53]}  Be6 {[%clk 0:02:49]} 9. Bg2 {[%clk 0:02:52]}  Nbd7 {[%clk 0:02:49]} 10. a4 {[%clk 0:02:51]}  Rc8 {[%clk 0:02:48]} 11. O-O {[%clk 0:02:51]}  Qc7 {[%clk 0:02:47]} 12. a5 {[%clk 0:02:48]}  Be7 {[%clk 0:02:46]} 13. Kh2 {[%clk 0:02:43]}  g6 {[%clk 0:02:44]} 14. Be3 {[%clk 0:02:39]}  O-O {[%clk 0:02:22]} 15. f4 {[%clk 0:02:37]}  Rfe8 {[%clk 0:02:20]} 16. f5 {[%clk 0:02:36]}  Bc4 {[%clk 0:02:20]} 17. fxg6 {[%clk 0:02:05]}  fxg6 {[%clk 0:02:20]} 18. Rf2 {[%clk 0:02:00]}  Kg7 {[%clk 0:02:19]} 19. Ng1 {[%clk 0:01:56]}  Rf8 {[%clk 0:02:11]} 20. Nf3 {[%clk 0:01:54]}  Nh7 {[%clk 0:02:11]} 21. Qd2 {[%clk 0:01:51]}  Rf7 {[%clk 0:02:04]} 22. Nd5 {[%clk 0:01:46]}  Bxd5 {[%clk 0:02:04]} 23. exd5 {[%clk 0:01:47]}  Ndf6 {[%clk 0:01:57]} 24. Nh4 {[%clk 0:01:41]}  Ng8 {[%clk 0:01:46]} 25. Rxf7+ {[%clk 0:01:39]}  Kxf7 {[%clk 0:01:46]} 26. Be4 {[%clk 0:01:36]}  Bxh4 {[%clk 0:01:46]} 27. gxh4 {[%clk 0:01:34]}  Nhf6 {[%clk 0:01:38]} 28. Rf1 {[%clk 0:01:26]}  Kg7 {[%clk 0:01:37]} 29. Bh6+ {[%clk 0:00:45]}  Nxh6 {[%clk 0:01:25]} 30. Rxf6 {[%clk 0:00:44]}  Kxf6 {[%clk 0:01:22]} 31. Qg5+ {[%clk 0:00:44]}  Kf7 {[%clk 0:01:03]} 32. Qxg6+ {[%clk 0:00:39]}  Ke7 {[%clk 0:01:02]} 33. Qg5+ {[%clk 0:00:22]}  Ke8 {[%clk 0:00:55]} 34. Qxh6 {[%clk 0:00:21]}  Qe7 {[%clk 0:00:50]} 35. Qh8+ {[%clk 0:00:13]}  Qf8 {[%clk 0:00:50]} 36. Bg6+ {[%clk 0:00:10]}  Ke7 {[%clk 0:00:50]} 37. Qh7+ {[%clk 0:00:09]}  Kd8 {[%clk 0:00:50]} 38. Bf5 {[%clk 0:00:09]}  Rc7 {[%clk 0:00:48]} 39. Qxh5 {[%clk 0:00:10]}  Rf7 {[%clk 0:00:48]} 40. Qg5+ {[%clk 0:00:10]}  Kc7 {[%clk 0:00:47]} 41. Be4 {[%clk 0:00:09]}  Rf2+ {[%clk 0:00:46]} 42. Bg2 {[%clk 0:00:09]}  e4 {[%clk 0:00:40]} 43. h5 {[%clk 0:00:08]}  Qf4+ {[%clk 0:00:20]} 44. Qxf4 {[%clk 0:00:08]}  Rxf4 {[%clk 0:00:21]} 45. Kg3 {[%clk 0:00:08]}  e3 {[%clk 0:00:19]} 46. Bf3 {[%clk 0:00:09]}  Rf5 {[%clk 0:00:19]} 47. Be2 {[%clk 0:00:03]}  Kd8 {[%clk 0:00:15]} 48. h6 {[%clk 0:00:02]}  Ke7 {[%clk 0:00:10]} 49. h7 {[%clk 0:00:02]}  Rf8 {[%clk 0:00:10]} 50. Bd3 {[%clk 0:00:01]}  Kd7 {[%clk 0:00:07]} 51. h4 {[%clk 0:00:01]}  Ke7 {[%clk 0:00:07]} 52. h5 {[%clk 0:00:02]}  Kf6 {[%clk 0:00:06]} 53. h6 {[%clk 0:00:02]}  Kg5 {[%clk 0:00:06]} 0-1


[Site "https://www.chess.com"]

[Event "Titled Tuesday Blitz April 26 Early 2022"]
[White "Jumabayev, Rinat"]
[Black "Schekachikhin, Maksim"]
[WhiteFideId "13702661"]
[BlackFideId "24177830"]
[WhiteElo "2561"]
[BlackElo "2230"]
[Result "1-0"]
[Round "11"]
[TimeControl "180+1"]
[Date "2022.04.26"]
[WhiteClock "0:01:59"]
[BlackClock "0:01:26"]

1. d4 {[%clk 0:03:00]}  d5 {[%clk 0:02:57]} 2. c4 {[%clk 0:03:00]}  e6 {[%clk 0:02:54]} 3. Nf3 {[%clk 0:03:01]}  a6 {[%clk 0:02:53]} 4. Bg5 {[%clk 0:02:56]}  Be7 {[%clk 0:02:52]} 5. Bxe7 {[%clk 0:02:56]}  Qxe7 {[%clk 0:02:53]} 6. Nbd2 {[%clk 0:02:56]}  Nf6 {[%clk 0:02:52]} 7. g3 {[%clk 0:02:56]}  O-O {[%clk 0:02:52]} 8. Bg2 {[%clk 0:02:57]}  c6 {[%clk 0:02:49]} 9. O-O {[%clk 0:02:56]}  Nbd7 {[%clk 0:02:44]} 10. Qc2 {[%clk 0:02:56]}  b6 {[%clk 0:02:40]} 11. cxd5 {[%clk 0:02:51]}  cxd5 {[%clk 0:02:36]} 12. Qc7 {[%clk 0:02:51]}  Qd8 {[%clk 0:02:33]} 13. Rfc1 {[%clk 0:02:52]}  Qxc7 {[%clk 0:02:28]} 14. Rxc7 {[%clk 0:02:53]}  Ne8 {[%clk 0:02:28]} 15. Rc2 {[%clk 0:02:53]}  Bb7 {[%clk 0:02:27]} 16. Ne5 {[%clk 0:02:50]}  Nxe5 {[%clk 0:02:00]} 17. dxe5 {[%clk 0:02:51]}  f6 {[%clk 0:01:56]} 18. f4 {[%clk 0:02:23]}  Rc8 {[%clk 0:01:41]} 19. Rac1 {[%clk 0:02:10]}  Rxc2 {[%clk 0:01:41]} 20. Rxc2 {[%clk 0:02:10]}  Kf7 {[%clk 0:01:38]} 21. Nc4 {[%clk 0:02:05]}  b5 {[%clk 0:01:31]} 22. Na5 {[%clk 0:02:03]}  Ba8 {[%clk 0:01:30]} 23. Rc8 {[%clk 0:02:03]}  Ke7 {[%clk 0:01:26]} 24. Rxa8 {[%clk 0:01:59]} 1-0


[Site "https://www.chess.com"]

[Event "Titled Tuesday Blitz April 26 Early 2022"]
[White "Karolczuk, Iwo"]
[Black "Oparin, Grigoriy"]
[WhiteFideId "21816972"]
[BlackFideId "24125890"]
[WhiteElo "2277"]
[BlackElo "2665"]
[Result "0-1"]
[Round "11"]
[TimeControl "180+1"]
[Date "2022.04.26"]
[WhiteClock "0:00:21"]
[BlackClock "0:02:07"]

1. d4 {[%clk 0:03:00]}  Nf6 {[%clk 0:02:59]} 2. Nf3 {[%clk 0:03:00]}  e6 {[%clk 0:03:00]} 3. e3 {[%clk 0:02:45]}  b6 {[%clk 0:02:59]} 4. Bd3 {[%clk 0:02:43]}  Bb7 {[%clk 0:03:00]} 5. O-O {[%clk 0:02:43]}  d5 {[%clk 0:03:01]} 6. b3 {[%clk 0:02:43]}  Bd6 {[%clk 0:03:01]} 7. c4 {[%clk 0:02:18]}  O-O {[%clk 0:03:01]} 8. cxd5 {[%clk 0:02:18]}  exd5 {[%clk 0:03:00]} 9. Ba3 {[%clk 0:02:18]}  c5 {[%clk 0:03:00]} 10. Nc3 {[%clk 0:02:17]}  a6 {[%clk 0:02:57]} 11. dxc5 {[%clk 0:02:16]}  bxc5 {[%clk 0:02:57]} 12. Na4 {[%clk 0:02:16]}  Nbd7 {[%clk 0:02:57]} 13. Rc1 {[%clk 0:02:15]}  Qe7 {[%clk 0:02:56]} 14. Bf5 {[%clk 0:02:03]}  Rfd8 {[%clk 0:02:44]} 15. Qc2 {[%clk 0:01:42]}  g6 {[%clk 0:02:43]} 16. Bh3 {[%clk 0:01:23]}  d4 {[%clk 0:02:43]} 17. Nd2 {[%clk 0:00:36]}  Qe5 {[%clk 0:02:32]} 18. g3 {[%clk 0:00:30]}  Qh5 {[%clk 0:02:32]} 19. Bg2 {[%clk 0:00:30]}  Bxg2 {[%clk 0:02:28]} 20. Kxg2 {[%clk 0:00:30]}  dxe3 {[%clk 0:02:28]} 21. Nf3 {[%clk 0:00:30]}  exf2 {[%clk 0:02:20]} 22. Rxf2 {[%clk 0:00:31]}  Ng4 {[%clk 0:02:19]} 23. Re2 {[%clk 0:00:31]}  Nde5 {[%clk 0:02:16]} 24. Nxe5 {[%clk 0:00:28]}  Qxh2+ {[%clk 0:02:14]} 25. Kf3 {[%clk 0:00:28]}  Nxe5+ {[%clk 0:02:13]} 26. Kf4 {[%clk 0:00:21]}  Nd3+ {[%clk 0:02:07]} 0-1


[Site "https://www.chess.com"]

[Event "Titled Tuesday Blitz April 26 Early 2022"]
[White "Kejzar, Petra"]
[Black "Ovezdurdyyeva, Jemal"]
[WhiteFideId "14610213"]
[BlackFideId "14001888"]
[WhiteElo "2003"]
[BlackElo "1946"]
[Result "0-1"]
[Round "11"]
[TimeControl "180+1"]
[Date "2022.04.26"]
[WhiteClock "0:00:04"]
[BlackClock "0:00:21"]

1. e4 {[%clk 0:03:00]}  d6 {[%clk 0:02:58]} 2. d4 {[%clk 0:02:59]}  Nf6 {[%clk 0:02:59]} 3. Nc3 {[%clk 0:02:58]}  g6 {[%clk 0:02:59]} 4. Nf3 {[%clk 0:02:56]}  c6 {[%clk 0:02:59]} 5. Be3 {[%clk 0:02:55]}  b5 {[%clk 0:02:59]} 6. Bd3 {[%clk 0:02:52]}  b4 {[%clk 0:02:58]} 7. Ne2 {[%clk 0:02:51]}  Bg7 {[%clk 0:02:58]} 8. Qd2 {[%clk 0:02:49]}  a5 {[%clk 0:02:54]} 9. Ng3 {[%clk 0:02:46]}  Ng4 {[%clk 0:02:35]} 10. Bg5 {[%clk 0:02:32]}  h6 {[%clk 0:02:27]} 11. Bf4 {[%clk 0:02:32]}  e5 {[%clk 0:02:27]} 12. Be3 {[%clk 0:02:25]}  Nxe3 {[%clk 0:02:24]} 13. fxe3 {[%clk 0:02:25]}  Bg4 {[%clk 0:02:18]} 14. O-O {[%clk 0:02:23]}  Bxf3 {[%clk 0:02:15]} 15. Rxf3 {[%clk 0:02:20]}  exd4 {[%clk 0:02:15]} 16. Raf1 {[%clk 0:02:14]}  dxe3 {[%clk 0:02:09]} 17. Qxe3 {[%clk 0:02:12]}  O-O {[%clk 0:02:08]} 18. h4 {[%clk 0:01:53]}  Qxh4 {[%clk 0:01:56]} 19. e5 {[%clk 0:01:45]}  Bxe5 {[%clk 0:01:49]} 20. c3 {[%clk 0:01:04]}  bxc3 {[%clk 0:01:44]} 21. bxc3 {[%clk 0:01:05]}  Bxc3 {[%clk 0:01:41]} 22. Rf4 {[%clk 0:01:03]}  Qg5 {[%clk 0:01:34]} 23. Ne4 {[%clk 0:01:00]}  Qe5 {[%clk 0:01:28]} 24. Nf6+ {[%clk 0:00:38]}  Kg7 {[%clk 0:01:28]} 25. Qg3 {[%clk 0:00:35]}  Qc5+ {[%clk 0:01:19]} 26. Kh1 {[%clk 0:00:32]}  Qg5 {[%clk 0:01:09]} 27. Rg4 {[%clk 0:00:27]}  Bxf6 {[%clk 0:00:51]} 28. Rxg5 {[%clk 0:00:23]}  hxg5 {[%clk 0:00:52]} 29. Qxd6 {[%clk 0:00:20]}  Bc3 {[%clk 0:00:49]} 30. Bxg6 {[%clk 0:00:19]}  Na6 {[%clk 0:00:31]} 31. Bc2 {[%clk 0:00:13]}  Rad8 {[%clk 0:00:29]} 32. Rxf7+ {[%clk 0:00:05]}  Rxf7 {[%clk 0:00:27]} 33. Qxd8 {[%clk 0:00:04]}  Bf6 {[%clk 0:00:21]} 34. Kg1 {[%clk 0:00:04]}  Bxd8 {[%clk 0:00:21]} 0-1


[Site "https://www.chess.com"]

[Event "Titled Tuesday Blitz April 26 Early 2022"]
[White "Lakshmi C"]
[Black "Polster, Christian"]
[WhiteFideId "25035347"]
[BlackFideId "12965081"]
[WhiteElo "1775"]
[BlackElo "2274"]
[Result "0-1"]
[Round "11"]
[TimeControl "180+1"]
[Date "2022.04.26"]
[WhiteClock "0:00:02"]
[BlackClock "0:00:05"]

1. e4 {[%clk 0:02:50]}  c5 {[%clk 0:02:58]} 2. Nf3 {[%clk 0:02:50]}  d6 {[%clk 0:02:58]} 3. d4 {[%clk 0:02:49]}  cxd4 {[%clk 0:02:59]} 4. Nxd4 {[%clk 0:02:50]}  Nf6 {[%clk 0:02:59]} 5. Nc3 {[%clk 0:02:50]}  a6 {[%clk 0:03:00]} 6. a4 {[%clk 0:02:49]}  g6 {[%clk 0:02:58]} 7. Be2 {[%clk 0:02:44]}  Bg7 {[%clk 0:02:58]} 8. O-O {[%clk 0:02:44]}  O-O {[%clk 0:02:58]} 9. Nb3 {[%clk 0:02:43]}  Nc6 {[%clk 0:02:48]} 10. Bg5 {[%clk 0:02:41]}  Be6 {[%clk 0:02:46]} 11. f4 {[%clk 0:02:40]}  Rc8 {[%clk 0:02:44]} 12. f5 {[%clk 0:02:38]}  Bxb3 {[%clk 0:02:39]} 13. cxb3 {[%clk 0:02:37]}  Ne5 {[%clk 0:02:30]} 14. Be3 {[%clk 0:02:30]}  Qa5 {[%clk 0:02:20]} 15. Rc1 {[%clk 0:02:23]}  Qb4 {[%clk 0:02:17]} 16. Bd4 {[%clk 0:01:53]}  Nxe4 {[%clk 0:01:49]} 17. Nd5 {[%clk 0:00:44]}  Qxd4+ {[%clk 0:00:59]} 18. Qxd4 {[%clk 0:00:40]}  Nf3+ {[%clk 0:00:59]} 19. gxf3 {[%clk 0:00:36]}  Bxd4+ {[%clk 0:00:59]} 20. Kg2 {[%clk 0:00:35]}  Rxc1 {[%clk 0:00:51]} 21. Rxc1 {[%clk 0:00:30]}  Nc5 {[%clk 0:00:24]} 22. Nxe7+ {[%clk 0:00:25]}  Kg7 {[%clk 0:00:23]} 23. Bc4 {[%clk 0:00:18]}  Re8 {[%clk 0:00:14]} 24. Nd5 {[%clk 0:00:11]}  Re5 {[%clk 0:00:13]} 25. fxg6 {[%clk 0:00:10]}  hxg6 {[%clk 0:00:13]} 26. b4 {[%clk 0:00:10]}  Ne6 {[%clk 0:00:13]} 27. Rd1 {[%clk 0:00:09]}  Bxb2 {[%clk 0:00:12]} 28. b5 {[%clk 0:00:08]}  axb5 {[%clk 0:00:11]} 29. axb5 {[%clk 0:00:08]}  Rg5+ {[%clk 0:00:10]} 30. Kf1 {[%clk 0:00:07]}  Bd4 {[%clk 0:00:08]} 31. Ke2 {[%clk 0:00:08]}  Rg2+ {[%clk 0:00:07]} 32. Kd3 {[%clk 0:00:08]}  Bc5 {[%clk 0:00:06]} 33. h4 {[%clk 0:00:07]}  Rh2 {[%clk 0:00:06]} 34. Ne7 {[%clk 0:00:06]}  Rxh4 {[%clk 0:00:05]} 35. Bxe6 {[%clk 0:00:06]}  Rd4+ {[%clk 0:00:04]} 36. Kc2 {[%clk 0:00:05]}  Rxd1 {[%clk 0:00:05]} 37. Kxd1 {[%clk 0:00:02]}  fxe6 {[%clk 0:00:06]} 38. Nc8 {[%clk 0:00:02]}  Kf7 {[%clk 0:00:05]} 39. Kc2 {[%clk 0:00:02]}  Ke8 {[%clk 0:00:05]} 0-1


[Site "https://www.chess.com"]

[Event "Titled Tuesday Blitz April 26 Early 2022"]
[White "Lauridsen, Jesper Morch"]
[Black "Mohammadian, Mohammad"]
[WhiteFideId "1401890"]
[BlackFideId "12566055"]
[WhiteElo "2282"]
[BlackElo "1544"]
[Result "1-0"]
[Round "11"]
[TimeControl "180+1"]
[Date "2022.04.26"]
[WhiteClock "0:01:34"]
[BlackClock "0:00:01"]

1. e4 {[%clk 0:03:00]}  e5 {[%clk 0:02:53]} 2. Nf3 {[%clk 0:03:00]}  Nc6 {[%clk 0:02:51]} 3. Bb5 {[%clk 0:02:58]}  a6 {[%clk 0:02:51]} 4. Bxc6 {[%clk 0:02:58]}  dxc6 {[%clk 0:02:49]} 5. O-O {[%clk 0:02:59]}  Bd6 {[%clk 0:02:48]} 6. d4 {[%clk 0:02:58]}  exd4 {[%clk 0:02:47]} 7. Qxd4 {[%clk 0:02:57]}  Bg4 {[%clk 0:02:43]} 8. Qxg7 {[%clk 0:02:49]}  Qf6 {[%clk 0:01:47]} 9. Qxg4 {[%clk 0:02:40]}  Ne7 {[%clk 0:01:45]} 10. e5 {[%clk 0:02:28]}  Bxe5 {[%clk 0:01:37]} 11. Bg5 {[%clk 0:02:25]}  Qg7 {[%clk 0:01:30]} 12. Nxe5 {[%clk 0:02:22]}  Qxe5 {[%clk 0:01:26]} 13. Bxe7 {[%clk 0:02:17]}  Qxe7 {[%clk 0:01:17]} 14. Nc3 {[%clk 0:02:15]}  Kf8 {[%clk 0:01:08]} 15. Rae1 {[%clk 0:02:10]}  Qd6 {[%clk 0:01:01]} 16. Ne4 {[%clk 0:02:07]}  Qg6 {[%clk 0:00:24]} 17. Qd7 {[%clk 0:01:53]}  Rg8 {[%clk 0:00:20]} 18. Ng3 {[%clk 0:01:49]}  h5 {[%clk 0:00:19]} 19. h4 {[%clk 0:01:41]}  Kg7 {[%clk 0:00:16]} 20. Re5 {[%clk 0:01:37]}  Qxc2 {[%clk 0:00:11]} 21. Rg5+ {[%clk 0:01:36]}  Kh7 {[%clk 0:00:10]} 22. Qxf7+ {[%clk 0:01:35]}  Rg7 {[%clk 0:00:01]} 23. Qxg7# {[%clk 0:01:34]} 1-0


[Site "https://www.chess.com"]

[Event "Titled Tuesday Blitz April 26 Early 2022"]
[White "Ljukin, Sergei"]
[Black "Omariev, Maksim"]
[WhiteFideId "14102200"]
[BlackFideId "4193423"]
[WhiteElo "2312"]
[BlackElo "2491"]
[Result "0-1"]
[Round "11"]
[TimeControl "180+1"]
[Date "2022.04.26"]
[WhiteClock "0:00:02"]
[BlackClock "0:00:12"]

1. e4 {[%clk 0:02:57]}  h5 {[%clk 0:03:00]} 2. d4 {[%clk 0:02:55]}  h4 {[%clk 0:03:01]} 3. h3 {[%clk 0:02:54]}  c6 {[%clk 0:03:02]} 4. Bd3 {[%clk 0:02:50]}  d5 {[%clk 0:03:03]} 5. e5 {[%clk 0:02:50]}  Nh6 {[%clk 0:02:57]} 6. Nf3 {[%clk 0:02:46]}  Nf5 {[%clk 0:02:55]} 7. c3 {[%clk 0:02:40]}  c5 {[%clk 0:02:39]} 8. O-O {[%clk 0:02:38]}  Nc6 {[%clk 0:02:39]} 9. dxc5 {[%clk 0:02:34]}  g6 {[%clk 0:02:32]} 10. Bf4 {[%clk 0:02:03]}  a5 {[%clk 0:02:20]} 11. Nbd2 {[%clk 0:01:40]}  e6 {[%clk 0:02:20]} 12. Bg5 {[%clk 0:01:35]}  Be7 {[%clk 0:02:11]} 13. Bxe7 {[%clk 0:01:28]}  Qxe7 {[%clk 0:02:11]} 14. Nb3 {[%clk 0:01:23]}  a4 {[%clk 0:02:11]} 15. Nbd4 {[%clk 0:01:21]}  Qxc5 {[%clk 0:02:11]} 16. Nb5 {[%clk 0:01:20]}  Nce7 {[%clk 0:02:03]} 17. Nfd4 {[%clk 0:01:12]}  Bd7 {[%clk 0:01:54]} 18. Qe2 {[%clk 0:01:09]}  Bxb5 {[%clk 0:01:48]} 19. Nxb5 {[%clk 0:01:03]}  Kf8 {[%clk 0:01:39]} 20. b4 {[%clk 0:01:01]}  Qb6 {[%clk 0:01:31]} 21. Qd2 {[%clk 0:00:46]}  Rh5 {[%clk 0:01:23]} 22. Be2 {[%clk 0:00:45]}  Rh8 {[%clk 0:01:11]} 23. Rac1 {[%clk 0:00:35]}  Rc8 {[%clk 0:01:08]} 24. a3 {[%clk 0:00:31]}  Kg7 {[%clk 0:01:08]} 25. Qg5 {[%clk 0:00:30]}  Rhd8 {[%clk 0:00:47]} 26. Qf6+ {[%clk 0:00:29]}  Kg8 {[%clk 0:00:47]} 27. Rfd1 {[%clk 0:00:26]}  Rd7 {[%clk 0:00:44]} 28. Nd4 {[%clk 0:00:18]}  Qd8 {[%clk 0:00:41]} 29. Nb5 {[%clk 0:00:14]}  Nc6 {[%clk 0:00:39]} 30. Qxd8+ {[%clk 0:00:14]}  Rcxd8 {[%clk 0:00:40]} 31. Bg4 {[%clk 0:00:14]}  Nxe5 {[%clk 0:00:38]} 32. Bxf5 {[%clk 0:00:13]}  gxf5 {[%clk 0:00:39]} 33. Rd4 {[%clk 0:00:12]}  Ng6 {[%clk 0:00:35]} 34. Rcd1 {[%clk 0:00:12]}  e5 {[%clk 0:00:29]} 35. R4d2 {[%clk 0:00:12]}  f6 {[%clk 0:00:29]} 36. f3 {[%clk 0:00:11]}  Kf7 {[%clk 0:00:29]} 37. Kf2 {[%clk 0:00:11]}  Nf4 {[%clk 0:00:26]} 38. c4 {[%clk 0:00:08]}  d4 {[%clk 0:00:24]} 39. Nc3 {[%clk 0:00:07]}  Ke6 {[%clk 0:00:21]} 40. Nxa4 {[%clk 0:00:07]}  Rc7 {[%clk 0:00:18]} 41. Nb6 {[%clk 0:00:05]}  Rg8 {[%clk 0:00:17]} 42. Kf1 {[%clk 0:00:04]}  Rc6 {[%clk 0:00:13]} 43. c5 {[%clk 0:00:04]}  Rxb6 {[%clk 0:00:10]} 44. cxb6 {[%clk 0:00:04]}  Nd5 {[%clk 0:00:11]} 45. Rc2 {[%clk 0:00:03]}  Ne3+ {[%clk 0:00:11]} 46. Ke2 {[%clk 0:00:02]}  Nxc2 {[%clk 0:00:12]} 47. Rc1 {[%clk 0:00:03]}  Nxa3 {[%clk 0:00:12]} 48. Rc7 {[%clk 0:00:03]}  Rb8 {[%clk 0:00:11]} 49. Kd3 {[%clk 0:00:03]}  Nb5 {[%clk 0:00:11]} 50. Rh7 {[%clk 0:00:02]}  Nd6 {[%clk 0:00:10]} 51. Rxh4 {[%clk 0:00:02]}  Rc8 {[%clk 0:00:11]} 52. Rh7 {[%clk 0:00:02]}  Rc3+ {[%clk 0:00:12]} 53. Kd2 {[%clk 0:00:02]}  e4 {[%clk 0:00:13]} 54. h4 {[%clk 0:00:02]}  Nc4+ {[%clk 0:00:12]} 55. Ke2 {[%clk 0:00:02]}  Rc2+ {[%clk 0:00:12]} 0-1


[Site "https://www.chess.com"]

[Event "Titled Tuesday Blitz April 26 Early 2022"]
[White "Lopez, Henry"]
[Black "Cramling Bellon, Anna"]
[WhiteFideId "5203830"]
[BlackFideId "32009232"]
[WhiteElo "2177"]
[BlackElo "1905"]
[Result "1-0"]
[Round "11"]
[TimeControl "180+1"]
[Date "2022.04.26"]
[WhiteClock "0:01:21"]
[BlackClock "0:00:01"]

1. d4 {[%clk 0:03:00]}  Nf6 {[%clk 0:02:54]} 2. Nf3 {[%clk 0:03:00]}  e6 {[%clk 0:02:53]} 3. c4 {[%clk 0:02:59]}  d5 {[%clk 0:02:50]} 4. Nc3 {[%clk 0:02:59]}  Bb4 {[%clk 0:02:50]} 5. Qa4+ {[%clk 0:02:57]}  Nc6 {[%clk 0:02:49]} 6. Ne5 {[%clk 0:02:57]}  Bd7 {[%clk 0:02:34]} 7. Nxd7 {[%clk 0:02:57]}  Qxd7 {[%clk 0:02:28]} 8. e3 {[%clk 0:02:57]}  Ne4 {[%clk 0:02:23]} 9. Qc2 {[%clk 0:02:56]}  O-O {[%clk 0:02:17]} 10. Bd3 {[%clk 0:02:55]}  f5 {[%clk 0:02:11]} 11. O-O {[%clk 0:02:54]}  Be7 {[%clk 0:01:27]} 12. a3 {[%clk 0:02:48]}  a6 {[%clk 0:01:21]} 13. cxd5 {[%clk 0:02:48]}  exd5 {[%clk 0:01:19]} 14. Nxd5 {[%clk 0:02:47]}  Kh8 {[%clk 0:00:22]} 15. Nxe7 {[%clk 0:02:33]}  Qxe7 {[%clk 0:00:22]} 16. f3 {[%clk 0:02:32]}  Nd6 {[%clk 0:00:21]} 17. b4 {[%clk 0:02:13]}  f4 {[%clk 0:00:18]} 18. d5 {[%clk 0:02:08]}  Ne5 {[%clk 0:00:12]} 19. exf4 {[%clk 0:01:59]}  Nxd3 {[%clk 0:00:12]} 20. Qxd3 {[%clk 0:01:58]}  Qf6 {[%clk 0:00:05]} 21. Rb1 {[%clk 0:01:56]}  Nb5 {[%clk 0:00:04]} 22. Bb2 {[%clk 0:01:55]}  Qxf4 {[%clk 0:00:04]} 23. Rbe1 {[%clk 0:01:53]}  Rad8 {[%clk 0:00:03]} 24. Re7 {[%clk 0:01:48]}  Rg8 {[%clk 0:00:02]} 25. Rfe1 {[%clk 0:01:43]}  Qd6 {[%clk 0:00:02]} 26. a4 {[%clk 0:01:39]}  Qb6+ {[%clk 0:00:01]} 27. Kh1 {[%clk 0:01:37]}  Nd6 {[%clk 0:00:02]} 28. Qc3 {[%clk 0:01:35]}  Nf5 {[%clk 0:00:02]} 29. Rxc7 {[%clk 0:01:34]}  Qg6 {[%clk 0:00:01]} 30. Rxb7 {[%clk 0:01:32]}  Qh6 {[%clk 0:00:01]} 31. Kg1 {[%clk 0:01:28]}  Qg6 {[%clk 0:00:01]} 32. Qe5 {[%clk 0:01:25]}  Nh4 {[%clk 0:00:01]} 33. Qg3 {[%clk 0:01:24]}  Qh5 {[%clk 0:00:01]} 34. Bxg7+ {[%clk 0:01:21]}  Rxg7 {[%clk 0:00:01]} 35. Qxg7# {[%clk 0:01:21]} 1-0


[Site "https://www.chess.com"]

[Event "Titled Tuesday Blitz April 26 Early 2022"]
[White "Maksimovic, Bojan"]
[Black "Ibrahimli, Murad"]
[WhiteFideId "14408120"]
[BlackFideId "13410229"]
[WhiteElo "2448"]
[BlackElo "2109"]
[Result "0-1"]
[Round "11"]
[TimeControl "180+1"]
[Date "2022.04.26"]
[WhiteClock "0:00:01"]
[BlackClock "0:00:03"]

1. d4 {[%clk 0:03:00]}  Nf6 {[%clk 0:02:59]} 2. c4 {[%clk 0:03:00]}  e6 {[%clk 0:02:58]} 3. Nf3 {[%clk 0:03:00]}  d5 {[%clk 0:02:58]} 4. g3 {[%clk 0:03:00]}  dxc4 {[%clk 0:02:57]} 5. Bg2 {[%clk 0:02:59]}  Nc6 {[%clk 0:02:55]} 6. e3 {[%clk 0:02:59]}  Rb8 {[%clk 0:02:54]} 7. O-O {[%clk 0:02:54]}  Be7 {[%clk 0:02:49]} 8. Qc2 {[%clk 0:02:53]}  b5 {[%clk 0:02:47]} 9. b3 {[%clk 0:02:53]}  Nb4 {[%clk 0:02:47]} 10. Qe2 {[%clk 0:02:50]}  O-O {[%clk 0:02:40]} 11. bxc4 {[%clk 0:02:35]}  bxc4 {[%clk 0:02:39]} 12. Nc3 {[%clk 0:02:21]}  c5 {[%clk 0:02:25]} 13. Rd1 {[%clk 0:02:10]}  Qa5 {[%clk 0:02:23]} 14. Ne5 {[%clk 0:02:01]}  cxd4 {[%clk 0:02:22]} 15. Nxc4 {[%clk 0:01:39]}  Qa6 {[%clk 0:02:17]} 16. Rxd4 {[%clk 0:01:36]}  Bb7 {[%clk 0:01:30]} 17. Bxb7 {[%clk 0:01:34]}  Rxb7 {[%clk 0:01:31]} 18. Ba3 {[%clk 0:01:30]}  Rc8 {[%clk 0:01:28]} 19. Bxb4 {[%clk 0:00:13]}  Rxb4 {[%clk 0:01:14]} 20. Ne5 {[%clk 0:00:06]}  Qxe2 {[%clk 0:01:05]} 21. Nxe2 {[%clk 0:00:07]}  Rb2 {[%clk 0:01:05]} 22. Nf4 {[%clk 0:00:06]}  g5 {[%clk 0:01:04]} 23. Nfd3 {[%clk 0:00:06]}  Rbc2 {[%clk 0:01:00]} 24. Rb1 {[%clk 0:00:06]}  R8c7 {[%clk 0:00:57]} 25. Rb8+ {[%clk 0:00:05]}  Kg7 {[%clk 0:00:56]} 26. h4 {[%clk 0:00:06]}  h6 {[%clk 0:00:53]} 27. hxg5 {[%clk 0:00:06]}  hxg5 {[%clk 0:00:54]} 28. a4 {[%clk 0:00:07]}  Ra2 {[%clk 0:00:47]} 29. Rb1 {[%clk 0:00:05]}  Nd5 {[%clk 0:00:46]} 30. Rf1 {[%clk 0:00:05]}  Nc3 {[%clk 0:00:46]} 31. Rg4 {[%clk 0:00:04]}  f5 {[%clk 0:00:43]} 32. Rc4 {[%clk 0:00:04]}  Rxc4 {[%clk 0:00:42]} 33. Nxc4 {[%clk 0:00:05]}  Rxa4 {[%clk 0:00:42]} 34. Nce5 {[%clk 0:00:05]}  Bf6 {[%clk 0:00:38]} 35. Kg2 {[%clk 0:00:05]}  Bxe5 {[%clk 0:00:25]} 36. Nxe5 {[%clk 0:00:06]}  g4 {[%clk 0:00:25]} 37. Rc1 {[%clk 0:00:06]}  Ne4 {[%clk 0:00:25]} 38. Rc7+ {[%clk 0:00:06]}  Kf6 {[%clk 0:00:25]} 39. Nd7+ {[%clk 0:00:06]}  Ke7 {[%clk 0:00:19]} 40. Rb7 {[%clk 0:00:06]}  Kd6 {[%clk 0:00:19]} 41. Nf8 {[%clk 0:00:06]}  Ra2 {[%clk 0:00:18]} 42. Rd7+ {[%clk 0:00:05]}  Ke5 {[%clk 0:00:18]} 43. Re7 {[%clk 0:00:06]}  Rxf2+ {[%clk 0:00:17]} 44. Kg1 {[%clk 0:00:07]}  Rf3 {[%clk 0:00:18]} 45. Rxe6+ {[%clk 0:00:07]}  Kd5 {[%clk 0:00:18]} 46. Ra6 {[%clk 0:00:07]}  Rxg3+ {[%clk 0:00:18]} 47. Kf1 {[%clk 0:00:08]}  Rxe3 {[%clk 0:00:19]} 48. Rxa7 {[%clk 0:00:08]}  Rf3+ {[%clk 0:00:17]} 49. Ke2 {[%clk 0:00:08]}  Rf2+ {[%clk 0:00:16]} 50. Kd3 {[%clk 0:00:07]}  g3 {[%clk 0:00:15]} 51. Ra5+ {[%clk 0:00:07]}  Kc6 {[%clk 0:00:15]} 52. Ra1 {[%clk 0:00:03]}  g2 {[%clk 0:00:11]} 53. Rg1 {[%clk 0:00:03]}  Kd5 {[%clk 0:00:12]} 54. Ng6 {[%clk 0:00:03]}  Kc5 {[%clk 0:00:08]} 55. Ke3 {[%clk 0:00:01]}  Ra2 {[%clk 0:00:06]} 56. Nh4 {[%clk 0:00:02]}  Ra3+ {[%clk 0:00:05]} 57. Kf4 {[%clk 0:00:02]}  Kd5 {[%clk 0:00:03]} 58. Nxf5 {[%clk 0:00:02]}  Nd2 {[%clk 0:00:02]} 59. Rxg2 {[%clk 0:00:02]}  Rf3+ {[%clk 0:00:02]} 60. Kg4 {[%clk 0:00:03]}  Rd3 {[%clk 0:00:03]} 61. Ng3 {[%clk 0:00:03]}  Nc4 {[%clk 0:00:03]} 62. Nf1 {[%clk 0:00:03]}  Ne5+ {[%clk 0:00:03]} 63. Kg5 {[%clk 0:00:02]}  Kd4 {[%clk 0:00:03]} 64. Rd2 {[%clk 0:00:01]}  Nf3+ {[%clk 0:00:03]} 0-1


[Site "https://www.chess.com"]